Cogmind - Beta 12 @@@ ROGUE MODE // 2024.01.20 @ 23:00:30 // Winter2019/RPGLIKE Player: Luminiferous Result: Destroyed self with Smartbomb Launcher Performance ------------- Evolutions (6) 3000 Regions Visited (11) 2200 Robots Destroyed (201) 1005 Value Destroyed (7403) 7403 Prototype IDs (39) 780 Alien Tech Used (0) 0 Bonus (969) 969 TOTAL SCORE: 15357 Bonus ------- High Alert Combat Kills 669 Aligned with FarCom 300 Cogmind --------- Core Integrity 0/1000 Matter 107/300 Energy 2/575 System Corruption 2% Temperature Cool (30) Movement Hovering (100) Ox1 Location -4/Factory Parts ------- > --- POWER (3) -------- Enhanced Nuclear Core Micro Fission Core Antimatter Reactor > --- PROPULSION (4) --- Antigrav System Antigrav System Gyrokinetic Inverter Cooled Gravmag System > --- UTILITY (8) ------ Improved Cooling System (fused) Improved Signal Interpreter Advanced Targeting Computer Improved Particle Charger Improved Weapon Cycler Improved Medium Armor Plating Shield Generator Trap Reconfigurator > --- WEAPON (3) ------- Cooled Particle Cannon Smartbomb Launcher > --- INVENTORY (5) ---- Antigrav System Cooled Particle Cannon Cooled Plasma Cannon Peak State ------------ > --- POWER ------------ Enhanced Nuclear Core Micro Fission Core Antimatter Reactor > --- PROPULSION ------- Antigrav System Gyrokinetic Inverter Gyrokinetic Inverter Cooled Gravmag System > --- UTILITY ---------- Improved Cooling System Improved Signal Interpreter Advanced Targeting Computer Improved Particle Charger Improved Weapon Cycler Improved Medium Armor Plating Shield Generator Trap Reconfigurator > --- WEAPON ----------- Cooled Particle Cannon Cooled Plasma Cannon Cooled Plasma Cannon > --- INVENTORY -------- Gravmag Array Cooled Particle Cannon Smartbomb Launcher [Rating: 98] Favorites ----------- Power Enhanced Nuclear Core Engine Cooled Ion Engine Power Core Enhanced Nuclear Core Reactor Antimatter Reactor Propulsion Cooled Airjet Wheel Compact Wheel Hover Unit Cooled Airjet Flight Unit Improved Flight Unit Utility Advanced Targeting Computer Device Trap Reconfigurator Processor Advanced Targeting Computer Protection Hardened Medium Armor Plating Weapon Cooled Particle Cannon Energy Gun Improved Medium Laser Energy Cannon Cooled Particle Cannon Ballistic Gun Assault Rifle Ballistic Cannon Hardcell Cannon Launcher Rocket Launcher Slashing Weapon Great Axe Build | -11 -10 -10 -9 -9 -9 -8 -8 -7 -6 -5 -4 ------- Run | Jun Mat Min Mat Min Exi Min Mat Fac Fac Fac Fac Slots Evolved 14 | 3 . 1 4 2 . . 1 2 . . 1 Power 2 | . . . 1 . . . . 1 . . . Propulsion 3 | 1 . . 1 1 . . . . . . . Utility 7 | 1 . 1 2 1 . . 1 . . . 1 Weapon 2 | 1 . . . . . . . 1 . . . Parts Attached 188 | 5 5 7 31 4 . 3 18 39 38 16 22 Power 32 | 1 1 1 8 . . . . 9 6 3 3 Engine 14 | 1 . . 8 . . . . 3 2 . . Core 17 | . 1 1 . . . . . 6 4 3 2 Reactor 1 | . . . . . . . . . . . 1 Propulsion 41 | 2 2 1 7 . . . 2 7 12 3 5 Treads . | . . . . . . . . . . . . Leg . | . . . . . . . . . . . . Wheel 6 | 2 2 . 2 . . . . . . . . Hover 34 | . . 1 4 . . . 2 7 12 3 5 Flight 1 | . . . 1 . . . . . . . . Utility 43 | . 2 3 5 1 . 1 10 8 3 5 5 Device 26 | . 1 3 3 . . . 7 2 1 4 5 Storage . | . . . . . . . . . . . . Processor 6 | . 1 . 2 . . 1 1 1 . . . Hackware . | . . . . . . . . . . . . Protection 11 | . . . . 1 . . 2 5 2 1 . Artifact . | . . . . . . . . . . . . Weapon 72 | 2 . 2 11 3 . 2 6 15 17 5 9 Energy Gun 25 | . . . 8 2 . 1 4 10 . . . Energy Cannon 25 | . . . . . . . . . 16 4 5 Ballistic Gun 8 | 2 . 1 1 . . 1 . 1 1 . 1 Ballistic Cannon 2 | . . . . . . . . 1 . . 1 Launcher 11 | . . 1 2 1 . . 2 2 . 1 2 Special Weapon . | . . . . . . . . . . . . Impact Weapon . | . . . . . . . . . . . . Slashing Weapon 1 | . . . . . . . . 1 . . . Piercing Weapon . | . . . . . . . . . . . . Special Melee Weapon . | . . . . . . . . . . . . Unidentified Prototypes 16 | . . . 6 . . . . 4 3 2 1 Parts Lost 3 | . . . . . . . 3 . . . . Power . | . . . . . . . . . . . . Propulsion 2 | . . . . . . . 2 . . . . Utility 1 | . . . . . . . 1 . . . . Weapon . | . . . . . . . . . . . . Highest Loss Streak 2 | . . . . . . . 2 . . . . To Critical Strikes . | . . . . . . . . . . . . Average Slot Usage (%) 94 | . 92 98 97 92 92 92 93 94 95 93 96 Engine 5 | . 9 . 12 14 14 14 13 3 3 . . Core 8 | . 4 12 4 . . . . 7 10 17 11 Wheel 2 | . 28 17 4 . . . . . . . . Hover 18 | . . 7 22 22 21 21 20 21 19 17 19 Device 23 | . 11 22 24 22 21 16 24 28 22 22 24 Processor 10 | . 8 12 11 14 14 18 12 6 11 11 11 Protection 4 | . . . . 1 7 7 6 6 5 5 5 Energy Gun 6 | . . . 14 13 14 13 13 16 . . . Energy Cannon 8 | . . . . . . . . . 16 16 15 Ballistic Gun 2 | . 28 24 2 . . . . . . . . Naked Turns . | . . . . . . . . . . . . Heaviest Build 69 | 9 10 11 24 32 32 33 37 41 62 55 69 Greatest Support 54 | 20 32 32 32 24 24 24 36 52 48 52 54 Greatest Overweight (x) 4 | 2 . . 4 1 1 1 1 1 1 1 1 Average Overweight (x) . | . . . . . 1 1 1 . . . 1 Largest Inventory Capacity 5 | . 3 3 3 3 3 3 3 3 4 5 5 Average Capacity 3 | . 2 3 3 3 3 3 3 3 3 4 5 Most Carried 5 | . 3 3 3 3 3 3 3 3 4 5 5 Average Carried 3 | . 1 3 2 2 2 2 2 2 3 4 4 Final Capacity 5 | . 3 3 3 3 3 3 3 3 4 5 5 Final Carried 5 | . 3 3 3 2 3 3 1 3 4 5 3 Class Distribution -------------------- 48% | Hacker-Tank 27% | Scavenger-Mutant 8% | Hacker-Mutant 5% | Mutant 5% | Hacker-Gunner 3% | Scavenger-Tank Dominant Class ---------------- Mutant | -10/Materials Scavenger-Mutant | -10/Mines Scavenger-Mutant | -9/Materials Scavenger-Mutant | -9/Mines Scavenger-Mutant | -9/Exiles Scavenger-Mutant | -8/Mines Scavenger-Mutant | -8/Materials Hacker-Tank | -7/Factory Hacker-Tank | -6/Factory Hacker-Tank | -5/Factory Hacker-Gunner | -4/Factory Resources | -11 -10 -10 -9 -9 -9 -8 -8 -7 -6 -5 -4 ----------- Run | Jun Mat Min Mat Min Exi Min Mat Fac Fac Fac Fac Matter Collected 4027 | 250 276 191 428 71 . 38 135 683 479 1175 301 Remotely . | . . . . . . . . . . . . Salvage Created 7624 | . 228 157 1133 112 . 274 987 980 1592 1235 926 Parts 390 | . 16 7 81 10 . 5 47 43 68 60 53 Haulers Intercepted 10 | . 1 . 4 . . . 1 2 1 1 . Recyclers Shooed 8 | . . 1 2 . . 1 1 1 2 . . Parts Field Recycled . | . . . . . . . . . . . . Retrieved Matter . | . . . . . . . . . . . . Parts Self-Destructed . | . . . . . . . . . . . . Prevented . | . . . . . . . . . . . . Kills | -11 -10 -10 -9 -9 -9 -8 -8 -7 -6 -5 -4 ------- Run | Jun Mat Min Mat Min Exi Min Mat Fac Fac Fac Fac Combat Hostiles Destroyed 149 | . 8 4 29 11 . 2 21 20 18 16 20 Guns 81 | . 8 3 27 9 . 2 20 12 . . . Cannons 41 | . . . . . . . . . 17 16 8 AOE 23 | . . 1 2 2 . . 1 5 . . 12 Classes Destroyed 20 | . 2 . 6 2 . 2 4 2 . . 2 Worker 11 | . . . . . . . 2 3 1 1 4 Builder 8 | . . . 1 . . . 1 . 3 2 1 Tunneler 1 | . . . . . . . . . . . 1 Hauler 10 | . 1 . 4 . . . 1 2 1 1 . Recycler 11 | . . . . . . 2 2 1 2 . 4 Mechanic 1 | . . . . . . . . 1 . . . Operator 4 | . . . 1 . . . 1 . 1 1 . Watcher 10 | . . . 3 . . . 1 1 5 . . Swarmer 28 | . . . 10 6 . . . 7 . . 5 Cutter 2 | . . . . . . . 2 . . . . Saboteur 1 | . . . . . . . . . . . 1 Grunt 62 | . 8 4 15 . . . 11 3 7 5 9 Duelist 2 | . . . 1 . . . . . . . 1 Sentry 17 | . . . 3 . . . 1 5 5 2 1 Demolisher 1 | . . . . 1 . . . . . . . Specialist 4 | . . . . . . . 4 . . . . Hunter 11 | . . . . . . 2 2 2 . 5 . Programmer 15 | . . . . . . . . 2 6 4 3 Heavy 2 | . . . . . . . 1 1 . . . Assembled 4 | . . . . 4 . . . . . . . Best Kill Streak 12 | . 2 2 7 4 . 1 6 5 5 7 12 Combat Bots Only 10 | . 2 2 6 4 . 1 3 4 4 7 10 Max Kills in Single Turn 8 | . 1 1 2 2 . 1 2 3 3 2 8 Gunslinging 1 | . . . 1 . . . . 1 . . . Exploded 3 | . . 1 2 2 . . 1 3 . . 3 Melee . | . . . . . . . . . . . . Uniques/NPCs Destroyed . | . . . . . . . . . . . . Combat | -11 -10 -10 -9 -9 -9 -8 -8 -7 -6 -5 -4 -------- Run | Jun Mat Min Mat Min Exi Min Mat Fac Fac Fac Fac Damage Taken 7441 | . 416 205 686 447 . 284 1271 1223 617 741 1551 Core 5392 | . 340 171 554 375 . 208 925 817 402 486 1114 Absorbed by Shields 1615 | . . . . . . . 439 427 223 270 256 Redirected to Core 4391 | . 234 117 418 235 . 178 672 718 357 419 1043 Redirected to Shielding 2 | . . . . . . . . 2 . . . Regen/Repaired (Parts) 432 | . . . . . . . . 330 62 40 . Core Remaining (%) 82 | 100 . 97 . . . 65 76 50 89 99 . Volleys Fired 586 | . 46 19 91 24 . 21 92 94 95 38 66 Largest 3 | . 2 2 2 2 . 2 2 3 3 3 3 Hottest 270 | . 40 40 112 112 . 112 112 181 270 100 105 Shots Fired 1256 | . 92 37 181 48 . 42 183 217 240 102 114 Gun 788 | . 92 35 180 47 . 42 177 207 1 . 7 Cannon 434 | . . . . . . . . . 239 99 96 Launcher 34 | . . 2 1 1 . . 6 10 . 3 11 Special . | . . . . . . . . . . . . Kinetic 160 | . 92 35 22 . . 2 . . 1 . 8 Thermal 1062 | . . . 158 47 . 40 177 207 239 99 95 Explosive 34 | . . 2 1 1 . . 6 10 . 3 11 Electromagnetic . | . . . . . . . . . . . . Robot Hit Streak 24 | . 7 6 11 3 . 12 24 19 16 19 20 Robot Miss Streak 6 | . 3 6 3 5 . 2 3 3 2 2 1 Penetration Max . | . . . . . . . . . . . . Secondary Targets 5 | . . . 1 2 . . 1 1 . . . Max Gunslinging Chain 1 | . . . 1 1 . . 1 1 . . . Shots Hit Robots 691 | . 55 20 100 25 . 31 119 115 114 69 43 Core Hits 335 | . 21 9 46 15 . 6 54 55 45 33 51 Critical Kills 4 | . . . 1 . . . . . 1 2 . Critical Parts Destroyed . | . . . . . . . . . . . . Critical Strikes 35 | . . . 6 1 . 5 11 9 1 2 . Burn 31 | . . . 5 1 . 5 11 9 . . . Meltdown 3 | . . . . . . . . . 1 2 . Destroy 1 | . . . 1 . . . . . . . . Melee Attacks . | . . . . . . . . . . . . Impact . | . . . . . . . . . . . . Slashing . | . . . . . . . . . . . . Piercing . | . . . . . . . . . . . . Sneak Attacks . | . . . . . . . . . . . . Combat Hostiles . | . . . . . . . . . . . . Follow-up Attacks . | . . . . . . . . . . . . Damage Inflicted 21111 | . 701 296 1824 534 . 532 2476 2712 4191 2664 5181 Guns 7918 | . 701 238 1713 424 . 532 2248 2062 . . . Cannons 7716 | . . . . . . . . . 3564 2664 1488 Explosions 5448 | . . 58 111 110 . . 228 650 627 . 3664 Melee . | . . . . . . . . . . . . Ramming 29 | . . . . . . . . . . . 29 Kinetic 1129 | . 701 238 190 . . . . . . . . Thermal 15224 | . . . 1523 424 . 532 2248 2062 3564 2664 2207 Explosive 4721 | . . 58 111 110 . . 228 650 619 . 2945 Electromagnetic 8 | . . . . . . . . . 8 . . Impact . | . . . . . . . . . . . . Slashing . | . . . . . . . . . . . . Piercing . | . . . . . . . . . . . . Highest Corruption 7 | . 1 1 . . . . 2 3 7 1 2 Average Corruption 3 | . 1 1 . . . . 1 2 4 1 1 Corruption Purged . | . . . . . . . . . . . . Corruption Blocked . | . . . . . . . . . . . . Effects 119 | . . 3 . . . . 3 31 72 9 1 Message Errors 27 | . . 1 . . . . . 6 18 2 . Matter Fused 32 | . . 1 . . . . 1 9 16 5 . Heat Flow Errors 11 | . . . . . . . . 1 9 1 . Energy Discharges 11 | . . . . . . . . 2 9 . . Parts Rejected 2 | . . . . . . . . . 2 . . Parts Fused 1 | . . . . . . . . 1 . . . Data Loss (minor) 14 | . . . . . . . 1 4 7 1 1 Data Loss (major) 7 | . . . . . . . . 3 4 . . Misfires 4 | . . 1 . . . . . 1 2 . . Alerts 3 | . . . . . . . . 1 2 . . Weapon Failures 7 | . . . . . . . 1 3 3 . . Overload Shots 6 | . . . . . . . . . 4 . 2 Effects 1 | . . . . . . . . . 1 . . Heat Surge 1 | . . . . . . . . . 1 . . Overflow Damage 629 | . . . . 40 . . 23 23 297 18 228 Projectiles 177 | . . . . . . . . . 146 18 13 Explosions 443 | . . . . 40 . . 23 23 151 . 206 Melee 9 | . . . . . . . . . . . 9 Knockbacks 2 | . . . . . . . . . . . 2 Impact 1 | . . . . . . . . . . . 1 Kinetic . | . . . . . . . . . . . . Secondary 1 | . . . . . . . . . . . 1 Self-Inflicted Damage 371 | . . 6 36 29 . . . 12 49 . 239 Shots 10 | . . 1 1 1 . . . 1 1 . 5 Rammed 1 | . . . . . . . . . . . 1 Targets Rammed 1 | . . . . . . . . . . . 1 Kicked . | . . . . . . . . . . . . Crushed . | . . . . . . . . . . . . Highest Temperature 295 | . 20 . . . . . 9 194 295 203 70 Average Temperature 38 | . 9 . . . . . 8 114 41 86 17 Received Heat Transfer 1810 | . 258 120 246 . . 36 270 186 158 60 476 Siege Activations . | . . . . . . . . . . . . Robots Corrupted . | . . . . . . . . . . . . Combat Hostiles . | . . . . . . . . . . . . Parts Fried 2 | . . . . . . . 2 . . . . Impact Corruptions 1 | . . . . . . . . . . . 1 Robots Melted 6 | . . . . . . . . 3 1 2 . Combat Hostiles 4 | . . . . . . . . 3 1 . . Parts Melted 76 | . . . 7 . . 7 17 14 11 13 7 Heat Transferred 25904 | . . . 3700 999 . 1517 5254 4736 4446 3249 2003 Parts Sabotaged . | . . . . . . . . . . . . Parts Stolen . | . . . . . . . . . . . . Parts Stripped . | . . . . . . . . . . . . Power Chain Reactions . | . . . . . . . . . . . . Missiles Intercepted . | . . . . . . . . . . . . Alert | -11 -10 -10 -9 -9 -9 -8 -8 -7 -6 -5 -4 ------- Run | Jun Mat Min Mat Min Exi Min Mat Fac Fac Fac Fac Peak Influence 809 | . 294 127 611 477 . 85 494 438 566 478 809 Initial 277 | . . 42 11 238 . . 33 224 214 277 113 Average 254 | . 143 75 388 325 . 50 211 174 329 221 298 Maximum Alert Level 3 | . 1 . 2 2 . . 2 2 2 2 3 Low Security (%) 42 | 100 77 100 22 . . 100 59 65 11 46 44 Level 1 34 | . 22 . 16 83 . . 27 29 55 50 2 Level 2 23 | . . . 61 16 . . 12 4 33 3 52 Level 3 . | . . . . . . . . . . . 1 Level 4 . | . . . . . . . . . . . . Level 5 . | . . . . . . . . . . . . High Security . | . . . . . . . . . . . . Max Security . | . . . . . . . . . . . . Squads Dispatched 49 | . 3 . 6 . . . 7 7 14 5 7 Investigation 16 | . 1 . 4 . . . 1 4 5 1 . Extermination 14 | . . . . . . . . 2 6 3 3 Reinforcement 15 | . 2 . 1 . . . 6 1 2 1 2 Assault 3 | . . . 1 . . . . . . . 2 Garrison 1 | . . . . . . . . . 1 . . Intercept . | . . . . . . . . . . . . Searches Triggered . | . . . . . . . . . . . . Construction Impeded 2 | . . . . . . . 1 . . 1 . Haulers Reinforced 1 | . . . . . . . . . 1 . . Active Scanning Responses . | . . . . . . . . . . . . Cargo Convoy Interrupts . | . . . . . . . . . . . . Stealth | -11 -10 -10 -9 -9 -9 -8 -8 -7 -6 -5 -4 --------- Run | Jun Mat Min Mat Min Exi Min Mat Fac Fac Fac Fac Distress Signals 18 | . 2 . 8 . . . 1 4 3 . . Communications Jammed . | . . . . . . . . . . . . Distress Signals . | . . . . . . . . . . . . Times Spotted 233 | . 17 4 46 17 . 5 38 27 29 18 32 Peak Tracking Total 14 | . 5 2 5 7 . 3 6 7 5 5 14 Tactical Retreats 22 | . 1 . 4 2 . . 4 9 2 . . Traps | -11 -10 -10 -9 -9 -9 -8 -8 -7 -6 -5 -4 ------- Run | Jun Mat Min Mat Min Exi Min Mat Fac Fac Fac Fac Traps Triggered 20 | . 2 . 2 . . . 1 3 8 4 . Indirectly . | . . . . . . . . . . . . Trap Hack Attempts . | . . . . . . . . . . . . Triggered . | . . . . . . . . . . . . Disarmed . | . . . . . . . . . . . . Reprogrammed . | . . . . . . . . . . . . Reused 11 | . . . . . . . 6 . 3 1 1 Traps Reconfigurated 26 | . . . . . . . 7 8 7 3 1 Traps Extracted . | . . . . . . . . . . . . Installed . | . . . . . . . . . . . . Triggered 11 | . . . . . . . 6 . 3 1 1 Machines | -11 -10 -10 -9 -9 -9 -8 -8 -7 -6 -5 -4 ---------- Run | Jun Mat Min Mat Min Exi Min Mat Fac Fac Fac Fac Machines Disabled 40 | . . . 1 3 . 1 . . 12 . 23 Max in Single Turn 21 | . . . 1 1 . 1 . . 3 . 21 Garrison Access 2 | . . . . . . . . . 1 . 1 Machines Repaired . | . . . . . . . . . . . . Machines Sabotaged . | . . . . . . . . . . . . Overloaded Fab Kills . | . . . . . . . . . . . . Hacking | -11 -10 -10 -9 -9 -9 -8 -8 -7 -6 -5 -4 --------- Run | Jun Mat Min Mat Min Exi Min Mat Fac Fac Fac Fac Machines Accessed 38 | . 3 . 5 . 1 . 2 7 13 6 1 Terminals 29 | . 3 . 5 . . . 2 5 9 5 . Fabricators . | . . . . . . . . . . . . Repair Stations 6 | . . . . . . . . 2 3 1 . Recycling Units . | . . . . . . . . . . . . Scanalyzers . | . . . . . . . . . . . . Garrison Access 2 | . . . . . . . . . 1 . 1 Total Hacks 138 | . 11 . 18 . 1 . 8 40 39 20 1 Successful 83 | . 5 . 10 . 1 . 4 28 23 11 1 Failed 54 | . 6 . 8 . . . 4 12 15 9 . Catastrophic 7 | . . . . . . . 1 2 2 2 . Database Lockouts 1 | . . . . . . . . . 1 . . Manual 97 | . 11 . 18 . 1 . 8 24 20 15 . Terminals 113 | . 11 . 18 . . . 8 28 30 18 . Fabricators . | . . . . . . . . . . . . Repair Stations 22 | . . . . . . . . 12 8 2 . Recycling Units . | . . . . . . . . . . . . Scanalyzers . | . . . . . . . . . . . . Garrison Access 2 | . . . . . . . . . 1 . 1 Terminal Hacks 38 | . 3 . 5 . 1 . 2 11 11 5 . Record 10 | . . . . . . . . 3 6 1 . Open Door 1 | . . . . . . . . . 1 . . Open DSF 2 | . . . . . . . . . 1 1 . Level Access Points 2 | . . . . . . . . 1 1 . . Branch Access Points 1 | . 1 . . . . . . . . . . Terminal Index 2 | . 1 . . . . . . 1 . . . Alert Level 9 | . . . 2 . . . . 3 2 2 . Unreport Threat 3 | . . . 1 . . . . 1 . 1 . Locate Traps 3 | . . . 1 . . . 1 1 . . . Hauler Manifests 4 | . 1 . 1 . . . 1 1 . . . EX-Prototype ID Bank 1 | . . . . . 1 . . . . . . Fabricator Hacks . | . . . . . . . . . . . . Repair Station Hacks 20 | . . . . . . . . 12 6 2 . Scan Component 10 | . . . . . . . . 6 3 1 . Repair 10 | . . . . . . . . 6 3 1 . Recycling Unit Hacks . | . . . . . . . . . . . . Scanalyzer . | . . . . . . . . . . . . Garrison Access Hacks 2 | . . . . . . . . . 1 . 1 Seal Access 2 | . . . . . . . . . 1 . 1 Unauthorized Hacks 23 | . 2 . 5 . . . 2 5 5 4 . Terminals 23 | . 2 . 5 . . . 2 5 5 4 . Botnet 23 | . 2 . 5 . . . 2 5 5 4 . Fabricators . | . . . . . . . . . . . . Repair Stations . | . . . . . . . . . . . . Recycling Units . | . . . . . . . . . . . . Scanalyzers . | . . . . . . . . . . . . Garrison Access . | . . . . . . . . . . . . Data Cores Recovered 3 | . . . . . . . 1 . 1 1 . Used 1 | . . . . . . . 1 . . . . Hacking Detections 30 | . 2 . 5 . . . 2 7 10 4 . Full Trace Events 13 | . . . 4 . . . 1 4 3 1 . Feedback Events . | . . . . . . . . . . . . Feedback Blocked . | . . . . . . . . . . . . Robot Schematics Acquired . | . . . . . . . . . . . . Robots Built . | . . . . . . . . . . . . Authchips . | . . . . . . . . . . . . Time . | . . . . . . . . . . . . Total Robot Build Rating . | . . . . . . . . . . . . Part Schematics Acquired . | . . . . . . . . . . . . Parts Built . | . . . . . . . . . . . . Authchips . | . . . . . . . . . . . . Time . | . . . . . . . . . . . . Total Part Build Rating . | . . . . . . . . . . . . Parts Repaired 9 | . . . . . . . . 5 3 1 . Time 413 | . . . . . . . . 274 101 38 . Parts Recycled . | . . . . . . . . . . . . Recycled Matter . | . . . . . . . . . . . . Retrieved Matter . | . . . . . . . . . . . . Retrieved Components . | . . . . . . . . . . . . Parts Scanalyzed . | . . . . . . . . . . . . Part Schematics Acquired . | . . . . . . . . . . . . Parts Damaged . | . . . . . . . . . . . . Bothacking | -11 -10 -10 -9 -9 -9 -8 -8 -7 -6 -5 -4 ------------ Run | Jun Mat Min Mat Min Exi Min Mat Fac Fac Fac Fac Used RIF Installer . | . . . . . . . . . . . . Robots Hacked . | . . . . . . . . . . . . Non-combat . | . . . . . . . . . . . . Combat . | . . . . . . . . . . . . Robot Hacks Applied . | . . . . . . . . . . . . Relay Couplers Released . | . . . . . . . . . . . . Fabnet Peak Effective % . | . . . . . . . . . . . . Robots Rewired . | . . . . . . . . . . . . Allies Hacked . | . . . . . . . . . . . . Hacks Repelled . | . . . . . . . . . . . . Allies | -11 -10 -10 -9 -9 -9 -8 -8 -7 -6 -5 -4 -------- Run | Jun Mat Min Mat Min Exi Min Mat Fac Fac Fac Fac Total Allies . | . . . . . . . . . . . . Largest Group . | . . . . . . . . . . . . Highest-Rated Group . | . . . . . . . . . . . . Highest-Rated Ally . | . . . . . . . . . . . . Total Orders . | . . . . . . . . . . . . Ally Attacks . | . . . . . . . . . . . . Total Damage . | . . . . . . . . . . . . Kills . | . . . . . . . . . . . . Allies Corrupted . | . . . . . . . . . . . . Allies Melted . | . . . . . . . . . . . . Intel | -11 -10 -10 -9 -9 -9 -8 -8 -7 -6 -5 -4 ------- Run | Jun Mat Min Mat Min Exi Min Mat Fac Fac Fac Fac Robot Analysis Total . | . . . . . . . . . . . . Derelict Logs Recovered 3 | . . 2 . 1 . . . . . . . Drone Launches . | . . . . . . . . . . . . Drone Recoveries . | . . . . . . . . . . . . Exploration | -11 -10 -10 -9 -9 -9 -8 -8 -7 -6 -5 -4 ------------- Run | Jun Mat Min Mat Min Exi Min Mat Fac Fac Fac Fac Turns Passed 13239 | 48 531 537 1188 559 245 397 949 2272 3509 1596 1408 Spaces Moved 9328 | 48 416 462 989 715 218 269 487 1662 2107 1054 901 Core 19 | 18 . . 1 . . . . . . . . Treads . | . . . . . . . . . . . . Legs . | . . . . . . . . . . . . Wheels 1076 | 30 416 462 168 . . . . . . . . Hover 8233 | . . . 820 715 218 269 487 1662 2107 1054 901 Flight . | . . . . . . . . . . . . Fastest Speed 40 | 50 80 100 52 52 112 112 108 40 40 52 97 Average Speed 85 | 85 86 100 63 63 112 112 110 48 100 102 102 Slowest Speed 250 | 150 100 100 250 112 112 112 116 116 111 108 105 Overloaded Moves . | . . . . . . . . . . . . Propulsion Burnouts . | . . . . . . . . . . . . Robots Hopped . | . . . . . . . . . . . . Cave-ins Triggered 1 | . . . . . . . . . . . 1 Exploration Rate (%) 44 | 4 66 74 57 99 64 51 25 25 33 14 18 Regions Visited 11 Branch Regions 4 Pre-discovered Areas 1 | . . 1 . . . . . . . . . Known Exits Taken 8 | . 1 . 1 1 1 1 . 1 1 1 . Unknown Exits Taken 3 | 1 . 1 . . . . 1 . . . . Scrap Searched 4 | . . 1 . 2 . 1 . . . . . Spaces Dug 136 | . . . . . . . . . 57 39 40 Terrain Destroyed 518 | . . 19 8 12 . . 33 64 119 77 186 Melee . | . . . . . . . . . . . . Projectile 150 | . . . . . . . . 1 82 21 46 AOE 367 | . . 19 8 12 . . 33 63 37 56 139 Terrain Rammed . | . . . . . . . . . . . . Walls Destroyed . | . . . . . . . . . . . . Machines Disabled . | . . . . . . . . . . . . Actions | -11 -10 -10 -9 -9 -9 -8 -8 -7 -6 -5 -4 --------- Run | Jun Mat Min Mat Min Exi Min Mat Fac Fac Fac Fac Total 13505 | 52 497 499 1363 772 218 323 709 2940 3319 1497 1316 Wait 3012 | . 5 3 196 25 . 18 60 1076 1007 339 283 Move 9317 | 47 415 461 988 714 217 268 486 1661 2106 1053 901 Hop . | . . . . . . . . . . . . Pick Up 47 | . 6 . 6 . 1 2 2 11 7 4 8 Fast Attach 107 | 5 2 3 20 . . 2 3 24 30 9 9 Attach 24 | . 2 . 3 1 . . 3 3 3 1 8 Detach 4 | . . . . . . . . . 1 1 2 Swap 57 | . 1 4 8 3 . 1 12 12 5 6 5 Drop 133 | . 4 3 24 1 . 4 4 25 30 18 20 Fire 586 | . 46 19 91 24 . 21 92 94 95 38 66 Melee . | . . . . . . . . . . . . Ram 1 | . . . . . . . . . . . 1 Kick . | . . . . . . . . . . . . Crush . | . . . . . . . . . . . . Escape Stasis . | . . . . . . . . . . . . Rewire . | . . . . . . . . . . . . Trap . | . . . . . . . . . . . . Miscellaneous 217 | . 16 6 27 4 . 7 47 34 35 28 13 Route ------- -11/Junkyard -10/Materials (discovered 4 exits: *Mat x2 / *Min x2) -10/Mines -9/Materials (discovered 4 exits: *Mat / *Min / [*Sto x2]) -9/Mines (discovered 3 exits: *Mat x2 / *Exi) -9/Exiles (discovered 2 exits: *Min x2) -8/Mines -8/Materials -7/Factory (discovered 4 exits: *Fac x4) -6/Factory (discovered 5 exits: *Fac x4 / *Ext) -5/Factory (discovered 2 exits: *Fac / *Upp) -4/Factory (discovered 1 exit: [*Upp]) History --------- Turn | Location | Event 8 | -11/Junkyard | Upgraded with Propulsion slot (x1) 8 | -11/Junkyard | Upgraded with Utility slot (x1) 8 | -11/Junkyard | Upgraded with Weapon slot (x1) 31 | -11/Junkyard | Discovered new exit (range 16) 49 | -11/Junkyard | Entered Materials 198 | -10/Materials | Identified exit to Mines 302 | -10/Materials | Build established: Mutant 370 | -10/Materials | Discovered new exit (range 16) 448 | -10/Materials | Discovered new exit (range 15) 580 | -10/Materials | Entered Mines 582 | -10/Mines | Reached level 2 592 | -10/Mines | Learned Materials garrison access intel 618 | -10/Mines | Upgraded with Utility slot (x1) 919 | -10/Mines | Discovered new exit (range 13) 1117 | -10/Mines | Entered Materials 1119 | -9/Materials | Reached level 3 1122 | -9/Materials | Upgraded with Power slot (x1) 1122 | -9/Materials | Upgraded with Propulsion slot (x1) 1319 | -9/Materials | Build established: Scavenger-Mutant 1420 | -9/Materials | Reached level 4 1423 | -9/Materials | Upgraded with Utility slot (x1) 1603 | -9/Materials | Discovered new exit (range 17) 1702 | -9/Materials | Reached level 5 1742 | -9/Materials | Discovered new exit (range 6) 1770 | -9/Materials | Discovered new exit (range 15) 1861 | -9/Materials | Upgraded with Utility slot (x1) 1917 | -9/Materials | First assault squad dispatched 2069 | -9/Materials | Discovered new exit (range 12) 2078 | -9/Materials | Identified exit to Materials 2279 | -9/Materials | Identified exit to Mines 2305 | -9/Materials | Entered Mines 2307 | -9/Mines | Reached level 6 2312 | -9/Mines | Received a Rocket Launcher from a helpful Derelict 2318 | -9/Mines | Upgraded with Propulsion slot (x1) 2393 | -9/Mines | Learned Materials emergency access door positions 2474 | -9/Mines | Met a Derelict bent on vengeance 2591 | -9/Mines | Assembled infested the area 2601 | -9/Mines | Discovered exit to Materials (range 11) 2645 | -9/Mines | Reached level 7 2751 | -9/Mines | Deemed a non-threat by the Exiles lab entrance 2751 | -9/Mines | Discovered new exit (range 5) 2761 | -9/Mines | Upgraded with Utility slot (x1) 2786 | -9/Mines | Discovered exit to Materials (range 8) 2861 | -9/Mines | Identified exit to Exiles 2864 | -9/Mines | Entered Exiles 2881 | -9/Exiles | Discovered new exit (range 17) 2892 | -9/Exiles | Met 8R-AWN 2912 | -9/Exiles | Met EX-HEX 2942 | -9/Exiles | Met EX-BIN 2955 | -9/Exiles | Aligned with FarCom system 2956 | -9/Exiles | Given EX-Vault access code 2983 | -9/Exiles | Opened EX-Vault 2994 | -9/Exiles | Found Trap Reconfigurator 3017 | -9/Exiles | Warned to stay clear of 0b10 Research branches 3049 | -9/Exiles | Met EX-DEC 3093 | -9/Exiles | Discovered new exit (range 10) 3101 | -9/Exiles | Identified exit to Mines 3109 | -9/Exiles | Left Exiles lab with Trap Reconfigurator 3109 | -9/Exiles | Entered Mines 3474 | -8/Mines | Discovered exit to Materials (range 16) 3506 | -8/Mines | Entered Materials 3508 | -8/Materials | Loaded intel: 1 garrison access location 3508 | -8/Materials | Reached level 8 3694 | -8/Materials | Reached level 9 3761 | -8/Materials | Upgraded with Utility slot (x1) 4168 | -8/Materials | Reached level 10 4441 | -8/Materials | Discovered new exit (range 9) 4455 | -8/Materials | Entered Factory 4457 | -7/Factory | Reached level 11 4477 | -7/Factory | Upgraded with Weapon slot (x1) 4762 | -7/Factory | Build established: Scavenger-Tank 4871 | -7/Factory | Reached level 12 5259 | -7/Factory | Build established: Hacker-Tank 5316 | -7/Factory | Repaired Imp. Hover Unit 5442 | -7/Factory | Identified exit to Factory 6048 | -7/Factory | Reached level 13 6069 | -7/Factory | Upgraded with Power slot (x1) 6429 | -7/Factory | Core integrity fell below 50% 6572 | -7/Factory | Repaired Cld. Pulse Rifle 6612 | -7/Factory | Repaired Hrd. Medium Armor Plating 6645 | -7/Factory | Repaired Shield Generator 6666 | -7/Factory | Build established: Hacker-Mutant 6715 | -7/Factory | Repaired Cld. Airjet 6727 | -7/Factory | Entered another Factory area 6729 | -6/Factory | Reached level 14 7034 | -6/Factory | Core integrity fell below 50% 7042 | -6/Factory | Reached level 15 7083 | -6/Factory | Build established: Hacker-Tank 7237 | -6/Factory | Garrison activated, responded to threat 7768 | -6/Factory | Repaired Mic. Nuclear Core 8396 | -6/Factory | Reached level 16 8711 | -6/Factory | Discovered new exit (range 9) 8718 | -6/Factory | Identified exit to Extension 8824 | -6/Factory | Repaired Enh. Nuclear Core 9379 | -6/Factory | Reached level 17 9643 | -6/Factory | Repaired Gravmag System 9842 | -6/Factory | Identified exit to Factory 9842 | -6/Factory | Central database locked down 10236 | -6/Factory | Entered another Factory area 10238 | -5/Factory | Reached level 18 10305 | -5/Factory | Repaired Imp. Light Armor Plating 10369 | -5/Factory | Discovered new exit (range 5) 10373 | -5/Factory | Identified exit to Upper Caves 10616 | -5/Factory | Destroyed 7 combat bots 11047 | -5/Factory | Reached level 19 11803 | -5/Factory | Discovered new exit (range 18) 11830 | -5/Factory | Identified exit to Factory 11832 | -5/Factory | Entered another Factory area 11834 | -4/Factory | Reached level 20 12351 | -4/Factory | Spotted B-86 Titan 12483 | -4/Factory | Reached level 21 12485 | -4/Factory | Reached level 22 12510 | -4/Factory | Upgraded with Utility slot (x1) 13082 | -4/Factory | First assault squad dispatched 13217 | -4/Factory | Reached level 23 13226 | -4/Factory | Core integrity fell below 50% 13232 | -4/Factory | Discovered new exit (range 16) 13237 | -4/Factory | Crushed by falling debris 13237 | -4/Factory | Core integrity fell below 20% 13240 | -4/Factory | Destroyed self with Smartbomb Launcher Last Messages --------------- 13230_ U-05 Engineer lays Concrete. 13231_ U-05 Engineer builds a Wall. 13231_ M-36 Artificer repairs Plasma Rifle. 13232_ EXIT=FOUND 13233_ Critical hit (Burn: +26). 13233_ G-67 Veteran destroyed. 13235_ Destroyed Adv. Recalibrator. 13235_ U-05 Engineer builds a Wall. 13236_ The unstable cave ceiling collapses. 13236_ Critical hit (Burn: +50). 13237_ The unstable cave ceiling collapses. 13237_ Crushed by falling debris. 13237_ Protomatter-27 crushed. 13239_ Critical hit (Burn: +36). 13240_ The unstable cave ceiling collapses. 13240_ Critical hit (Burn: +37). 13240_ Destroyed Flexi-carbon Leg. 13240_ G-67 Veteran destroyed. [Achievement: 10k Club] [Achievement: Achiever] Map ----- +----------------------------------------------------+ | # ####?????????????????????? | | ###### #????????????????????????? | | # ##???????????????????????? | | ! # ##???????????????????????? | | # ##???????????????????????? | | """ # ##???????????????????????? | | """ # ##???????????????????????? | | """ + #????????????????????????? | | # #????????????????????????? | | """ # #????????????????????????? | | """ # #????????????????????????? | | """ # ##????????????????????????? | | # #?????????????????????????? | | # #?????????????????????????? | | ## # #?????????????????????????? | | # #?????????????????????????? | | + ####?##???????????????????? | | / # ## ## #???????????????????? | | # ## ##??????????????????? | | # # ##?###?????????????? | | # u# # #####?????????? | | # g# # #?????????? | | """ # ## ##????????? | | """ /# # #????????? | | """ # g %% #% #????????? | | """ # %%% %@] ; ????? | | # % = g # ????? | | #+#### % #????????? | | # #??# ###### # # b +????????? | | # #??# #????# # #????????? | | # #??# #????# # g %! #????????? | | # #??# #????# # ! #????????? | | # #### +????# # g #????????? | | #????# ##+# m #????????? | | #????#?? #????????? | | #???????### #######????????? | | #?????????# # ##??????????????? | | #?????????### ### # ???????????????? | | #???????????? ?? ??????????????? | | #?????H?????? ?? ? < ?????????????? | | """ =! ?????????? ??? ??????????????? | | """" !! ####??????????##???# ????????????????? | | """" !! #????????????????????????????????????? | | #????????????????????????????????????? | | ???????????????????????????????? | | ###############??????????????????????????????????? | | ?????????????????????????????????????????????????? | | ?????????????????????????????????????????????????? | | ?????????????????????????????????????????????????? | | ?????????????????????????????????????????????????? | +----------------------------------------------------+ Best States ------------- Heat Dissipation 104 Energy Generation 55 Energy Capacity 575 Matter Stores 300 Matter Capacity 300 Sight Range 18 Robot Scan Range 14 Terrain Scan Density 10 Power Amplification 20 Additional Mass Support 9 Armor Coverage 225 Resistance: KI 20 Resistance: TH 20 Resistance: EX 20 Power Shielding 33 Weapon Cycling 20 Evasion (%) 57 Targeting Accuracy 8 Particle Charging 20 Offensive Hacking 25 Defensive Hacking 15 Item Schematics ----------------- None Robot Schematics ------------------ None Fabricated ------------ Nothing Alien Tech Used ----------------- None Achievements -------------- 10k Club Achiever Can't Touch This Oh No You Don't! Challenges ------------ None RPGLIKE | -11 -10 -10 -9 -9 -9 -8 -8 -7 -6 -5 -4 --------- Run | Jun Mat Min Mat Min Exi Min Mat Fac Fac Fac Fac Levels Raised 22 | . . 1 3 2 . . 3 3 4 2 4 XP Earned 36694 | 3000 1065 1000 5395 1583 350 875 4523 4435 5164 3763 5541 XP Spent 34430 | 1500 1500 1280 4570 2800 . . 4700 3800 6830 2850 4600 Upgrades 65 | 3 3 9 11 2 . . 8 9 13 3 4 Power Slot 2 | . . . 1 . . . . 1 . . . Propulsion Slot 3 | 1 . . 1 1 . . . . . . . Utility Slot 7 | 1 . 1 2 1 . . 1 . . . 1 Weapon Slot 2 | 1 . . . . . . . 1 . . . Core Integrity 8 | . . 8 . . . . . . . . . Heat Dissipation 5 | . . . 4 . . . . . 1 . . Mass Support 2 | . . . . . . . 2 . . . . Inventory Capacity 5 | . 3 . . . . . . . 1 1 . Sight Range 2 | . . . . . . . . . 2 . . Sensor Range 1 | . . . . . . . . 1 . . . Ranged Accuracy 4 | . . . . . . . . . 2 . 2 Hack Attack % 5 | . . . . . . . . 3 . 1 1 Hack Defense % 3 | . . . . . . . . 2 . 1 . KI Resistance % 4 | . . . 1 . . . 2 . 1 . . TH Resistance % 4 | . . . 1 . . . 2 . 1 . . EX Resistance % 4 | . . . 1 . . . 1 1 1 . . TH Damage % 4 | . . . . . . . . . 4 . . Protomatter Created 2094 | . 197 47 304 26 . . 431 265 263 220 341 Integrity Restored 4724 | . 340 141 584 78 . 159 1032 697 789 616 288 Core 4382 | . 340 141 584 78 . 159 1032 565 789 584 110 Parts 342 | . . . . . . . . 132 . 32 178 Protomatter Decayed 342 | . 41 . 111 51 . . 87 . . . 52 Game ------ Seed ThermalNavigationCharger Manual? 0 Play Time 02:14:17 Cumulative 19.9 hours Start 2024.01.20 @ 20:05:41 End 2024.01.20 @ 23:00:30 Sessions 1 Manual Loads 0 Difficulty Rogue Special Mode Winter2019/RPGLIKE Game No. 49 Rogue 49 Adventurer 0 Explorer 0 Win Type - Total 0 Types 0/0/0/0/0/0/0/0/0 Lore% 19 Gallery% 29 Achievement% 25 Wizard Run 0 Options --------- ASCII 0 Keyboard 0 Movement Mouse Keybinds 1 Fullscreen 2 Font 18/SmallcapsGlow Map View 76x50 Tactical HUD 1 Map Filters SHIFT_HUE(270)|BRIGHTNESS(75) Filters SHIFT_HUE(90)|BRIGHTNESS(125) Steam 1 RUN: 2664b145-952b-47b3-92e9-00304f79adf7